[Event "Late-Titled-Tuesday-Blitz-October-10-2023"]
[Site "Chess.com"]
[Date "2023.10.10"]
[Round "3"]
[White "Elsa167"]
[Black "JoakimVonAnd"]
[Result "1-0"]
[WhiteElo "2923"]
[BlackElo "2691"]
[TimeControl "180+1"]
[EndTime "14:28:38 PDT"]
[Termination "Elsa167 won by checkmate"]

1. d4 {[%clk 0:03:00.9]} 1... d5 {[%clk 0:02:57.8]} 2. c4 {[%clk 0:03:01.5]}
2... e6 {[%clk 0:02:58.4]} 3. Nf3 {[%clk 0:03:01.7]} 3... Nf6 {[%clk 0:02:56.1]}
4. Nc3 {[%clk 0:03:02.2]} 4... c5 {[%clk 0:02:56.6]} 5. Bg5 {[%clk 0:03:02.2]}
5... cxd4 {[%clk 0:02:51.8]} 6. Qxd4 {[%clk 0:03:03.1]} 6... Nc6 {[%clk
0:02:51.6]} 7. Bxf6 {[%clk 0:03:03.7]} 7... gxf6 {[%clk 0:02:46.2]} 8. Qh4
{[%clk 0:03:03.6]} 8... d4 {[%clk 0:02:25.3]} 9. O-O-O {[%clk 0:03:02.4]} 9...
e5 {[%clk 0:02:24.1]} 10. e3 {[%clk 0:03:02.5]} 10... Be7 {[%clk 0:02:19]} 11.
exd4 {[%clk 0:02:42.7]} 11... f5 {[%clk 0:02:17.2]} 12. Qh5 {[%clk 0:02:40.8]}
12... exd4 {[%clk 0:02:14.4]} 13. Nd5 {[%clk 0:02:39.5]} 13... Be6 {[%clk
0:02:01.7]} 14. Bd3 {[%clk 0:02:35.7]} 14... Bxd5 {[%clk 0:01:54.7]} 15. cxd5
{[%clk 0:02:36]} 15... Qxd5 {[%clk 0:01:55.6]} 16. b3 {[%clk 0:01:25.2]} 16...
Qa5 {[%clk 0:01:40.1]} 17. Kb1 {[%clk 0:01:14.6]} 17... O-O-O {[%clk 0:01:08.6]}
18. Qxf5+ {[%clk 0:01:11.8]} 18... Qxf5 {[%clk 0:01:08.5]} 19. Bxf5+ {[%clk
0:01:12.7]} 19... Kc7 {[%clk 0:01:09.1]} 20. Be4 {[%clk 0:01:07.6]} 20... Bf6
{[%clk 0:01:03.6]} 21. Bxc6 {[%clk 0:01:06.6]} 21... Kxc6 {[%clk 0:00:52.2]} 22.
Kc2 {[%clk 0:01:06.4]} 22... Kd5 {[%clk 0:00:44.4]} 23. Rd2 {[%clk 0:00:40.3]}
23... Rc8+ {[%clk 0:00:44]} 24. Kb1 {[%clk 0:00:40.7]} 24... Rhe8 {[%clk
0:00:39.3]} 25. Nxd4 {[%clk 0:00:26.5]} 25... Bxd4 {[%clk 0:00:38.1]} 26. Rhd1
{[%clk 0:00:27.1]} 26... Re4 {[%clk 0:00:37.1]} 27. f3 {[%clk 0:00:27.6]} 27...
Rf4 {[%clk 0:00:26.4]} 28. g3 {[%clk 0:00:27.5]} 28... Rxf3 {[%clk 0:00:27]} 29.
Rxd4+ {[%clk 0:00:28.2]} 29... Ke6 {[%clk 0:00:27.4]} 30. R1d2 {[%clk
0:00:23.1]} 30... Rc7 {[%clk 0:00:24.1]} 31. Rd6+ {[%clk 0:00:20.9]} 31... Kf5
{[%clk 0:00:23.1]} 32. Rh6 {[%clk 0:00:20.3]} 32... f6 {[%clk 0:00:21.6]} 33.
Kb2 {[%clk 0:00:19.3]} 33... Kg5 {[%clk 0:00:20.3]} 34. Rh4 {[%clk 0:00:19.1]}
34... h5 {[%clk 0:00:20.1]} 35. Ra4 {[%clk 0:00:13.1]} 35... a6 {[%clk
0:00:20.1]} 36. Rad4 {[%clk 0:00:13.3]} 36... f5 {[%clk 0:00:19.5]} 37. Rd8
{[%clk 0:00:09.5]} 37... Kg4 {[%clk 0:00:18.2]} 38. Rg8+ {[%clk 0:00:08.3]}
38... Kh3 {[%clk 0:00:18.1]} 39. Rg5 {[%clk 0:00:06.2]} 39... Rh7 {[%clk
0:00:18.4]} 40. a4 {[%clk 0:00:04.4]} 40... h4 {[%clk 0:00:18.8]} 41. gxh4
{[%clk 0:00:04.6]} 41... Rxh4 {[%clk 0:00:19]} 42. Rg7 {[%clk 0:00:02.1]} 42...
Rhf4 {[%clk 0:00:19.1]} 43. Rxb7 {[%clk 0:00:02.1]} 43... Rf2 {[%clk 0:00:19.3]}
44. Rxf2 {[%clk 0:00:02.7]} 44... Rxf2+ {[%clk 0:00:20.2]} 45. Kc3 {[%clk
0:00:03.5]} 45... Kxh2 {[%clk 0:00:20.8]} 46. Rb6 {[%clk 0:00:03.8]} 46... a5
{[%clk 0:00:20.2]} 47. Rb5 {[%clk 0:00:04.1]} 47... f4 {[%clk 0:00:20.2]} 48.
Rxa5 {[%clk 0:00:04.1]} 48... f3 {[%clk 0:00:20.7]} 49. Rf5 {[%clk 0:00:04.8]}
49... Kg2 {[%clk 0:00:20.5]} 50. a5 {[%clk 0:00:04.8]} 50... Ra2 {[%clk
0:00:20.8]} 51. b4 {[%clk 0:00:05.1]} 51... f2 {[%clk 0:00:21.2]} 52. Kc4 {[%clk
0:00:04.6]} 52... Ra3 {[%clk 0:00:18.4]} 53. Rxf2+ {[%clk 0:00:04]} 53... Kxf2
{[%clk 0:00:19]} 54. Kb5 {[%clk 0:00:03.5]} 54... Ke3 {[%clk 0:00:19.6]} 55. Kb6
{[%clk 0:00:03.6]} 55... Kd4 {[%clk 0:00:20.1]} 56. a6 {[%clk 0:00:03.9]} 56...
Kc4 {[%clk 0:00:18.2]} 57. a7 {[%clk 0:00:04.3]} 57... Rb3 {[%clk 0:00:18.5]}
58. a8=Q {[%clk 0:00:04.1]} 58... Rxb4+ {[%clk 0:00:13.7]} 59. Kc6 {[%clk
0:00:04.6]} 59... Kc3 {[%clk 0:00:13.6]} 60. Qh8+ {[%clk 0:00:04.7]} 60... Kb3
{[%clk 0:00:13.9]} 61. Qg8+ {[%clk 0:00:04.1]} 61... Kb2 {[%clk 0:00:13.8]} 62.
Kc5 {[%clk 0:00:04.3]} 62... Rb3 {[%clk 0:00:14.3]} 63. Qg7+ {[%clk 0:00:04.7]}
63... Kc2 {[%clk 0:00:13.5]} 64. Kc4 {[%clk 0:00:05.3]} 64... Re3 {[%clk
0:00:08.2]} 65. Qg2+ {[%clk 0:00:04.3]} 65... Kd1 {[%clk 0:00:08.1]} 66. Kd4
{[%clk 0:00:04.8]} 66... Re2 {[%clk 0:00:08.2]} 67. Qf3 {[%clk 0:00:03.9]} 67...
Kd2 {[%clk 0:00:08.1]} 68. Qc3+ {[%clk 0:00:04.1]} 68... Kd1 {[%clk 0:00:08.4]}
69. Qa5 {[%clk 0:00:04.7]} 69... Kc2 {[%clk 0:00:06.6]} 70. Qb4 {[%clk
0:00:03.7]} 70... Kd1 {[%clk 0:00:06.6]} 71. Kd3 {[%clk 0:00:03.8]} 71... Rh2
{[%clk 0:00:01.8]} 72. Qb1# {[%clk 0:00:03.8]} 1-0

[Event "Late-Titled-Tuesday-Blitz-October-10-2023"]
[Site "Chess.com"]
[Date "2023.10.10"]
[Round "3"]
[White "Levanzovsky"]
[Black "Arteler"]
[Result "1-0"]
[WhiteElo "2430"]
[BlackElo "2601"]
[TimeControl "180+1"]
[EndTime "14:29:20 PDT"]
[Termination "Levanzovsky won by resignation"]

1. e4 {[%clk 0:03:00.9]} 1... e6 {[%clk 0:02:51.9]} 2. d4 {[%clk 0:03:00.6]}
2... d5 {[%clk 0:02:52.1]} 3. e5 {[%clk 0:03:01.3]} 3... c5 {[%clk 0:02:52.3]}
4. c3 {[%clk 0:03:02.1]} 4... Qb6 {[%clk 0:02:53]} 5. Nf3 {[%clk 0:03:02.7]}
5... Nc6 {[%clk 0:02:53.6]} 6. a3 {[%clk 0:03:03.1]} 6... Nh6 {[%clk 0:02:53.8]}
7. b4 {[%clk 0:03:03.2]} 7... cxd4 {[%clk 0:02:54.4]} 8. cxd4 {[%clk 0:03:04.1]}
8... Nf5 {[%clk 0:02:54.9]} 9. Bb2 {[%clk 0:03:04.9]} 9... Be7 {[%clk
0:02:45.9]} 10. Bd3 {[%clk 0:03:04.1]} 10... O-O {[%clk 0:02:45.4]} 11. Bxf5
{[%clk 0:03:02.8]} 11... exf5 {[%clk 0:02:45.6]} 12. Nc3 {[%clk 0:03:03.7]}
12... Be6 {[%clk 0:02:45.9]} 13. O-O {[%clk 0:03:02.8]} 13... g5 {[%clk
0:02:45.5]} 14. Qd2 {[%clk 0:02:56.7]} 14... Qd8 {[%clk 0:02:45.1]} 15. Ne1
{[%clk 0:02:47.4]} 15... f4 {[%clk 0:02:44.4]} 16. h4 {[%clk 0:02:36.6]} 16...
h6 {[%clk 0:02:43.6]} 17. Rc1 {[%clk 0:02:22.9]} 17... Rc8 {[%clk 0:02:41]} 18.
Rc2 {[%clk 0:02:17.4]} 18... Bf5 {[%clk 0:02:40]} 19. Rc1 {[%clk 0:02:15.7]}
19... Qd7 {[%clk 0:02:35.1]} 20. Ne2 {[%clk 0:02:09.6]} 20... Qe6 {[%clk
0:02:27.1]} 21. Nf3 {[%clk 0:02:01.1]} 21... Be4 {[%clk 0:02:23]} 22. Nh2 {[%clk
0:01:57.2]} 22... Kh8 {[%clk 0:02:11.9]} 23. f3 {[%clk 0:01:57.3]} 23... Bf5
{[%clk 0:02:11.8]} 24. hxg5 {[%clk 0:01:53.8]} 24... hxg5 {[%clk 0:02:11.7]} 25.
g3 {[%clk 0:01:50.8]} 25... fxg3 {[%clk 0:02:10.7]} 26. Nxg3 {[%clk 0:01:51.3]}
26... Bh3 {[%clk 0:02:09.1]} 27. Rf2 {[%clk 0:01:46.9]} 27... Kg7 {[%clk
0:02:09.1]} 28. Nhf1 {[%clk 0:01:45]} 28... Rh8 {[%clk 0:02:09]} 29. Ne3 {[%clk
0:01:45.3]} 29... Rh4 {[%clk 0:02:06.5]} 30. Rh2 {[%clk 0:01:43.6]} 30... Rch8
{[%clk 0:02:05.4]} 31. Rc2 {[%clk 0:01:41.8]} 31... Kf8 {[%clk 0:01:50.6]} 32.
Qd3 {[%clk 0:01:30.4]} 32... Bd8 {[%clk 0:01:33.4]} 33. Nef5 {[%clk 0:01:11.2]}
33... R4h7 {[%clk 0:01:30.2]} 34. Nd6 {[%clk 0:01:05.6]} 34... Bb6 {[%clk
0:01:28.6]} 35. Kh1 {[%clk 0:00:58.5]} 35... Ne7 {[%clk 0:01:04.7]} 36. a4
{[%clk 0:00:50.3]} 36... a5 {[%clk 0:01:02.2]} 37. bxa5 {[%clk 0:00:49.8]} 37...
Bxa5 {[%clk 0:01:03.1]} 38. Qb5 {[%clk 0:00:48.8]} 38... Be1 {[%clk 0:00:58.4]}
39. Nf1 {[%clk 0:00:22.3]} 39... Nf5 {[%clk 0:00:51.9]} 40. Rc8+ {[%clk
0:00:19.3]} 40... Kg7 {[%clk 0:00:51.8]} 41. Nxf5+ {[%clk 0:00:18.6]} 41... Qxf5
{[%clk 0:00:51.6]} 42. Rxh8 {[%clk 0:00:17.4]} 42... Rxh8 {[%clk 0:00:51.7]} 43.
Qe2 {[%clk 0:00:16.8]} 43... Bb4 {[%clk 0:00:24.8]} 44. Bc1 {[%clk 0:00:16.7]}
44... g4 {[%clk 0:00:24.4]} 45. fxg4 {[%clk 0:00:14.7]} 45... Bxg4 {[%clk
0:00:25.3]} 46. Qg2 {[%clk 0:00:12.2]} 46... Rg8 {[%clk 0:00:21.7]} 47. Ne3
{[%clk 0:00:10.9]} 47... Qf3 {[%clk 0:00:16.3]} 48. Nxg4 {[%clk 0:00:11.1]}
48... Qd1+ {[%clk 0:00:15.3]} 49. Qg1 {[%clk 0:00:11.1]} 49... Qxg1+ {[%clk
0:00:15.1]} 50. Kxg1 {[%clk 0:00:11]} 50... Kf8 {[%clk 0:00:16]} 51. Rg2 {[%clk
0:00:11.1]} 51... Ke7 {[%clk 0:00:15.2]} 52. Nf6 {[%clk 0:00:11.2]} 52... Rxg2+
{[%clk 0:00:15.5]} 53. Kxg2 {[%clk 0:00:12.1]} 53... Ke6 {[%clk 0:00:16.4]} 54.
Kf3 {[%clk 0:00:11.8]} 54... b6 {[%clk 0:00:15.3]} 55. Ke3 {[%clk 0:00:12.3]}
55... Be7 {[%clk 0:00:15.3]} 56. Ng4 {[%clk 0:00:11.4]} 56... Bg5+ {[%clk
0:00:15.6]} 57. Kd3 {[%clk 0:00:10.8]} 57... Bxc1 {[%clk 0:00:16.5]} 58. Nf6
{[%clk 0:00:07.2]} 58... Bg5 {[%clk 0:00:16.2]} 59. Ne8 {[%clk 0:00:07.8]} 59...
Kd7 {[%clk 0:00:14.3]} 60. Ng7 {[%clk 0:00:07.9]} 60... Bh6 {[%clk 0:00:14.1]}
61. Nf5 {[%clk 0:00:08.3]} 61... Bf8 {[%clk 0:00:15]} 62. Kc3 {[%clk 0:00:08.6]}
62... Ke6 {[%clk 0:00:14.4]} 63. Ne3 {[%clk 0:00:08.6]} 63... Bh6 {[%clk
0:00:14.8]} 64. Nc2 {[%clk 0:00:07.8]} 64... Bf8 {[%clk 0:00:14.8]} 65. Ne1
{[%clk 0:00:07.6]} 65... f6 {[%clk 0:00:14.6]} 66. Nd3 {[%clk 0:00:07.8]} 66...
fxe5 {[%clk 0:00:13.9]} 67. Nxe5 {[%clk 0:00:06.5]} 67... Bd6 {[%clk 0:00:13.1]}
68. Nd3 {[%clk 0:00:07.4]} 68... Kf5 {[%clk 0:00:13.4]} 69. Nf2 {[%clk
0:00:04.4]} 69... Kf4 {[%clk 0:00:13.2]} 70. Kd3 {[%clk 0:00:04.4]} 70... Kf3
{[%clk 0:00:12.4]} 71. Nd1 {[%clk 0:00:05.1]} 71... Bb4 {[%clk 0:00:11.9]} 72.
Ne3 {[%clk 0:00:05.5]} 72... Ba5 {[%clk 0:00:09.7]} 73. Nxd5 {[%clk 0:00:05.9]}
73... Kg4 {[%clk 0:00:09.7]} 74. Kc4 {[%clk 0:00:06.3]} 74... Kf5 {[%clk
0:00:10]} 75. Kb5 {[%clk 0:00:03.2]} 75... Ke4 {[%clk 0:00:10.6]} 76. Nxb6
{[%clk 0:00:03.8]} 76... Bc3 {[%clk 0:00:10.5]} 77. d5 {[%clk 0:00:03.1]} 77...
Ke5 {[%clk 0:00:11.2]} 78. Kc6 {[%clk 0:00:03.4]} 78... Bb4 {[%clk 0:00:11.7]}
79. Nc4+ {[%clk 0:00:03.9]} 79... Kd4 {[%clk 0:00:12.3]} 80. Nb6 {[%clk
0:00:02.1]} 80... Ke5 {[%clk 0:00:11.5]} 81. Nd7+ {[%clk 0:00:02.6]} 81... Kd4
{[%clk 0:00:10.9]} 82. d6 {[%clk 0:00:02.4]} 82... Kc4 {[%clk 0:00:11.1]} 83.
Nb6+ {[%clk 0:00:02.8]} 83... Kb3 {[%clk 0:00:11.4]} 84. d7 {[%clk 0:00:03.4]}
84... Be7 {[%clk 0:00:11.6]} 85. Nd5 {[%clk 0:00:03.6]} 85... Bd8 {[%clk
0:00:10.8]} 86. Kb5 {[%clk 0:00:04.2]} 86... Kc2 {[%clk 0:00:09.2]} 87. a5
{[%clk 0:00:05.1]} 87... Kd3 {[%clk 0:00:10.1]} 88. a6 {[%clk 0:00:05.5]} 88...
Kd4 {[%clk 0:00:11]} 89. a7 {[%clk 0:00:06.2]} 89... Kxd5 {[%clk 0:00:11.9]} 90.
a8=Q+ {[%clk 0:00:07.1]} 1-0

[Event "Late-Titled-Tuesday-Blitz-October-10-2023"]
[Site "Chess.com"]
[Date "2023.10.10"]
[Round "4"]
[White "Iball95"]
[Black "Zhbugnoimt"]
[Result "1-0"]
[WhiteElo "2836"]
[BlackElo "2556"]
[TimeControl "180+1"]
[EndTime "14:31:26 PDT"]
[Termination "Iball95 won by resignation"]

1. e4 {[%clk 0:02:59.3]} 1... c5 {[%clk 0:02:59]} 2. Nf3 {[%clk 0:02:59.4]} 2...
d6 {[%clk 0:02:59.6]} 3. Nc3 {[%clk 0:03:00.2]} 3... Nf6 {[%clk 0:02:59.7]} 4.
d4 {[%clk 0:03:00.6]} 4... cxd4 {[%clk 0:03:00.6]} 5. Qxd4 {[%clk 0:03:00.9]}
5... Nc6 {[%clk 0:03:00.4]} 6. Bb5 {[%clk 0:03:00.8]} 6... Bd7 {[%clk
0:03:01.1]} 7. Bxc6 {[%clk 0:03:01.4]} 7... Bxc6 {[%clk 0:03:02]} 8. Bg5 {[%clk
0:03:01.3]} 8... e6 {[%clk 0:02:54]} 9. O-O-O {[%clk 0:03:02]} 9... Be7 {[%clk
0:02:52.6]} 10. Rhe1 {[%clk 0:03:02.2]} 10... O-O {[%clk 0:02:42.1]} 11. e5
{[%clk 0:03:02.9]} 11... dxe5 {[%clk 0:02:42.3]} 12. Nxe5 {[%clk 0:03:03.8]}
12... Qxd4 {[%clk 0:02:38.5]} 13. Rxd4 {[%clk 0:03:04.7]} 13... Bxg2 {[%clk
0:02:21.1]} 14. Nd7 {[%clk 0:03:02.5]} 14... Rfd8 {[%clk 0:01:55.6]} 15. Bxf6
{[%clk 0:03:01.5]} 15... gxf6 {[%clk 0:01:55.7]} 16. Rg1 {[%clk 0:03:00.6]} 1-0

[Event "Late-Titled-Tuesday-Blitz-October-10-2023"]
[Site "Chess.com"]
[Date "2023.10.10"]
[Round "4"]
[White "Firouzja2003"]
[Black "YouShallNotPass001"]
[Result "1-0"]
[WhiteElo "3054"]
[BlackElo "2418"]
[TimeControl "180+1"]
[EndTime "14:32:44 PDT"]
[Termination "Firouzja2003 won by checkmate"]

1. e4 {[%clk 0:03:00.9]} 1... e5 {[%clk 0:02:56.3]} 2. Nf3 {[%clk 0:03:01.1]}
2... Nc6 {[%clk 0:02:56.5]} 3. Bb5 {[%clk 0:03:01.5]} 3... Nf6 {[%clk
0:02:54.5]} 4. d3 {[%clk 0:03:02.2]} 4... Bc5 {[%clk 0:02:54.2]} 5. Bxc6 {[%clk
0:03:02.5]} 5... dxc6 {[%clk 0:02:53.9]} 6. Nc3 {[%clk 0:03:03.4]} 6... Nd7
{[%clk 0:02:52.4]} 7. Qe2 {[%clk 0:03:03.6]} 7... O-O {[%clk 0:02:51.3]} 8. Be3
{[%clk 0:03:04.5]} 8... Bd6 {[%clk 0:02:50.4]} 9. O-O-O {[%clk 0:03:04.9]} 9...
b5 {[%clk 0:02:50]} 10. d4 {[%clk 0:03:05.2]} 10... Qe7 {[%clk 0:02:44.6]} 11.
dxe5 {[%clk 0:03:03.7]} 11... Nxe5 {[%clk 0:02:44.4]} 12. Nd4 {[%clk 0:03:04.5]}
12... Bd7 {[%clk 0:02:22.6]} 13. Kb1 {[%clk 0:02:45.4]} 13... Nc4 {[%clk
0:02:19.2]} 14. Bc1 {[%clk 0:02:42.7]} 14... Rfe8 {[%clk 0:02:15.5]} 15. Rd3
{[%clk 0:02:37.1]} 15... a6 {[%clk 0:02:14]} 16. g4 {[%clk 0:02:35.8]} 16... g6
{[%clk 0:02:11.2]} 17. Rg1 {[%clk 0:02:32.5]} 17... c5 {[%clk 0:02:10.2]} 18.
Nd5 {[%clk 0:02:30.3]} 18... Qe5 {[%clk 0:01:46.2]} 19. Nf5 {[%clk 0:02:30.2]}
19... gxf5 {[%clk 0:01:34.9]} 20. gxf5+ {[%clk 0:02:30]} 20... Kh8 {[%clk
0:01:34.3]} 21. Qh5 {[%clk 0:02:29.9]} 21... Rg8 {[%clk 0:01:19.7]} 22. Qxh7+
{[%clk 0:02:29.6]} 22... Kxh7 {[%clk 0:01:17]} 23. Rh3# {[%clk 0:02:30.5]} 1-0

[Event "Late-Titled-Tuesday-Blitz-October-10-2023"]
[Site "Chess.com"]
[Date "2023.10.10"]
[Round "4"]
[White "Flaccidmoves"]
[Black "isainz"]
[Result "1-0"]
[WhiteElo "2415"]
[BlackElo "2024"]
[TimeControl "180+1"]
[EndTime "14:33:16 PDT"]
[Termination "Flaccidmoves won by resignation"]

1. d4 {[%clk 0:03:00.9]} 1... d5 {[%clk 0:02:54.3]} 2. c4 {[%clk 0:03:00.5]}
2... e6 {[%clk 0:02:53.8]} 3. Nc3 {[%clk 0:02:59.9]} 3... a6 {[%clk 0:02:53.1]}
4. cxd5 {[%clk 0:02:58.3]} 4... exd5 {[%clk 0:02:53]} 5. Bf4 {[%clk 0:02:58.5]}
5... Nf6 {[%clk 0:02:51]} 6. e3 {[%clk 0:02:58.1]} 6... Be6 {[%clk 0:02:40.9]}
7. Nf3 {[%clk 0:02:54.9]} 7... Bd6 {[%clk 0:02:40]} 8. Bxd6 {[%clk 0:02:50]}
8... Qxd6 {[%clk 0:02:40]} 9. Bd3 {[%clk 0:02:50.4]} 9... h6 {[%clk 0:02:38.7]}
10. O-O {[%clk 0:02:48.8]} 10... Nbd7 {[%clk 0:02:33.7]} 11. Rb1 {[%clk
0:02:45]} 11... O-O {[%clk 0:02:17.4]} 12. h3 {[%clk 0:02:44.2]} 12... c6 {[%clk
0:02:15.3]} 13. b4 {[%clk 0:02:42.1]} 13... Nb6 {[%clk 0:01:55.8]} 14. Ne5
{[%clk 0:02:39.9]} 14... Nfd7 {[%clk 0:01:48.5]} 15. f4 {[%clk 0:02:39.3]} 15...
Nxe5 {[%clk 0:01:37]} 16. fxe5 {[%clk 0:02:40.2]} 16... Qe7 {[%clk 0:01:34.2]}
17. Qh5 {[%clk 0:02:35.2]} 17... Qg5 {[%clk 0:01:20.7]} 18. Qxg5 {[%clk
0:02:32.7]} 18... hxg5 {[%clk 0:01:21.6]} 19. a4 {[%clk 0:02:27.3]} 19... Nc4
{[%clk 0:01:16]} 20. Bxc4 {[%clk 0:02:26.5]} 20... dxc4 {[%clk 0:01:16.3]} 21.
Ne4 {[%clk 0:02:19]} 21... b5 {[%clk 0:01:09.1]} 22. a5 {[%clk 0:02:17.5]} 22...
Bf5 {[%clk 0:01:00.7]} 23. Rxf5 {[%clk 0:02:16.6]} 1-0

[Event "Late-Titled-Tuesday-Blitz-October-10-2023"]
[Site "Chess.com"]
[Date "2023.10.10"]
[Round "4"]
[White "Mykola-Bortnyk"]
[Black "Ali_rastbod"]
[Result "1-0"]
[WhiteElo "2960"]
[BlackElo "2745"]
[TimeControl "180+1"]
[EndTime "14:33:45 PDT"]
[Termination "Mykola-Bortnyk won by resignation"]

1. e4 {[%clk 0:03:00.9]} 1... e6 {[%clk 0:02:59.4]} 2. d4 {[%clk 0:02:59.8]}
2... d5 {[%clk 0:03:00.1]} 3. exd5 {[%clk 0:03:00.7]} 3... exd5 {[%clk
0:03:00.3]} 4. Nf3 {[%clk 0:03:00]} 4... Bd6 {[%clk 0:03:00.4]} 5. c4 {[%clk
0:03:00.2]} 5... Nf6 {[%clk 0:03:00.4]} 6. c5 {[%clk 0:02:56.9]} 6... Be7 {[%clk
0:03:00.7]} 7. Bd3 {[%clk 0:02:56.7]} 7... b6 {[%clk 0:03:01.2]} 8. Be3 {[%clk
0:02:53.2]} 8... bxc5 {[%clk 0:02:58.4]} 9. dxc5 {[%clk 0:02:54.1]} 9... O-O
{[%clk 0:02:58.5]} 10. O-O {[%clk 0:02:50.7]} 10... Ba6 {[%clk 0:02:58.6]} 11.
Nc3 {[%clk 0:02:38.5]} 11... c6 {[%clk 0:02:54.5]} 12. b4 {[%clk 0:02:34.7]}
12... Ng4 {[%clk 0:02:45.1]} 13. Bd4 {[%clk 0:02:31.9]} 13... Bf6 {[%clk
0:02:41.4]} 14. h3 {[%clk 0:02:10.8]} 14... Bxd4 {[%clk 0:02:13]} 15. Nxd4
{[%clk 0:02:11.7]} 15... Ne5 {[%clk 0:02:13.5]} 16. Bxa6 {[%clk 0:01:43]} 16...
Nxa6 {[%clk 0:02:14.4]} 17. Qe2 {[%clk 0:01:35.9]} 17... Nc4 {[%clk 0:02:06.6]}
18. Nxc6 {[%clk 0:01:36.1]} 18... Qh4 {[%clk 0:01:44.9]} 19. Nxd5 {[%clk
0:01:31.1]} 19... Rfe8 {[%clk 0:01:38.9]} 20. Nce7+ {[%clk 0:01:25.7]} 20... Kh8
{[%clk 0:01:37.6]} 21. Rac1 {[%clk 0:01:26.4]} 1-0

[Event "Late-Titled-Tuesday-Blitz-October-10-2023"]
[Site "Chess.com"]
[Date "2023.10.10"]
[Round "4"]
[White "Schwindle"]
[Black "OLDTERMINATOR"]
[Result "1-0"]
[WhiteElo "2413"]
[BlackElo "1590"]
[TimeControl "180+1"]
[EndTime "14:34:15 PDT"]
[Termination "Schwindle won on time"]

1. e4 {[%clk 0:03:00.9]} 1... e6 {[%clk 0:01:25.1]} 2. d4 {[%clk 0:02:59.1]}
2... d5 {[%clk 0:01:20.8]} 3. Nc3 {[%clk 0:02:59.3]} 3... Bb4 {[%clk 0:01:19]}
4. e5 {[%clk 0:02:59.3]} 4... c5 {[%clk 0:01:19]} 5. Bd2 {[%clk 0:02:59.7]} 5...
Nc6 {[%clk 0:01:18]} 6. Nf3 {[%clk 0:03:00.1]} 6... Bd7 {[%clk 0:01:16.4]} 7.
dxc5 {[%clk 0:02:58.4]} 7... Bxc5 {[%clk 0:01:14.9]} 8. Bd3 {[%clk 0:02:58.5]}
8... Nge7 {[%clk 0:01:13.6]} 9. O-O {[%clk 0:02:58.8]} 9... a6 {[%clk 0:01:10]}
10. a3 {[%clk 0:02:57.4]} 10... h6 {[%clk 0:01:09.2]} 11. Ne2 {[%clk 0:02:49.9]}
11... Qc7 {[%clk 0:01:06]} 12. Bf4 {[%clk 0:02:48.4]} 12... O-O {[%clk
0:00:52.5]} 13. Qc1 {[%clk 0:02:44.4]} 13... Nf5 {[%clk 0:00:19.4]} 14. Bxf5
{[%clk 0:02:41]} 14... exf5 {[%clk 0:00:18.4]} 15. e6 {[%clk 0:02:41.7]} 15...
Bd6 {[%clk 0:00:15.3]} 16. exd7 {[%clk 0:02:38.8]} 16... Qxd7 {[%clk 0:00:14.4]}
17. Rd1 {[%clk 0:02:35.9]} 17... Bxf4 {[%clk 0:00:11.6]} 18. Qxf4 {[%clk
0:02:34.9]} 18... Rad8 {[%clk 0:00:11.7]} 19. Ned4 {[%clk 0:02:28.5]} 19... Nxd4
{[%clk 0:00:10.8]} 20. Nxd4 {[%clk 0:02:28.5]} 20... g5 {[%clk 0:00:08.5]} 21.
Qxf5 {[%clk 0:02:27.7]} 21... Qxf5 {[%clk 0:00:07.4]} 22. Nxf5 {[%clk
0:02:28.6]} 22... Kh7 {[%clk 0:00:06.3]} 23. c3 {[%clk 0:02:27.9]} 23... Kg6
{[%clk 0:00:04.6]} 24. Nd4 {[%clk 0:02:27.8]} 24... Rfe8 {[%clk 0:00:03.8]} 25.
Kf1 {[%clk 0:02:28.2]} 25... Re4 {[%clk 0:00:02.6]} 26. Re1 {[%clk 0:02:27.7]}
26... Rde8 {[%clk 0:00:02.1]} 27. Rxe4 {[%clk 0:02:27.3]} 1-0

[Event "Late-Titled-Tuesday-Blitz-October-10-2023"]
[Site "Chess.com"]
[Date "2023.10.10"]
[Round "4"]
[White "Druid24"]
[Black "Hrant_ChessMood"]
[Result "0-1"]
[WhiteElo "2727"]
[BlackElo "2938"]
[TimeControl "180+1"]
[EndTime "14:34:22 PDT"]
[Termination "Hrant_ChessMood won by resignation"]

1. e4 {[%clk 0:03:00.9]} 1... e5 {[%clk 0:03:00]} 2. Nf3 {[%clk 0:03:00.4]} 2...
Nc6 {[%clk 0:02:58.5]} 3. Bb5 {[%clk 0:02:59.4]} 3... Nf6 {[%clk 0:02:58.1]} 4.
d3 {[%clk 0:02:53.4]} 4... Bc5 {[%clk 0:02:55.7]} 5. Bxc6 {[%clk 0:02:50.1]}
5... dxc6 {[%clk 0:02:55.4]} 6. Qe2 {[%clk 0:02:51]} 6... Nd7 {[%clk 0:02:52.4]}
7. a3 {[%clk 0:02:47.7]} 7... O-O {[%clk 0:02:52.3]} 8. Nbd2 {[%clk 0:02:47.1]}
8... Re8 {[%clk 0:02:51.2]} 9. O-O {[%clk 0:02:43.8]} 9... Nf8 {[%clk
0:02:50.2]} 10. b4 {[%clk 0:02:43.2]} 10... Bd6 {[%clk 0:02:50.2]} 11. Bb2
{[%clk 0:02:43.3]} 11... Ng6 {[%clk 0:02:49.7]} 12. Nc4 {[%clk 0:02:43.2]} 12...
b6 {[%clk 0:02:32.8]} 13. Qe3 {[%clk 0:02:37.9]} 13... c5 {[%clk 0:02:19.3]} 14.
Nxd6 {[%clk 0:02:33.9]} 14... cxd6 {[%clk 0:02:18.9]} 15. g3 {[%clk 0:02:25.2]}
15... h6 {[%clk 0:02:09.9]} 16. c4 {[%clk 0:02:22.8]} 16... Bh3 {[%clk
0:02:03.3]} 17. Rfe1 {[%clk 0:02:22.2]} 17... Rf8 {[%clk 0:02:03.6]} 18. Nd2
{[%clk 0:01:59.9]} 18... f5 {[%clk 0:01:55.1]} 19. exf5 {[%clk 0:02:00.3]} 19...
Bxf5 {[%clk 0:01:54.1]} 20. Ne4 {[%clk 0:01:58.7]} 20... Qd7 {[%clk 0:01:51.2]}
21. f3 {[%clk 0:01:52]} 21... Rf7 {[%clk 0:01:50.9]} 22. Rf1 {[%clk 0:01:51]}
22... Raf8 {[%clk 0:01:50.6]} 23. Rf2 {[%clk 0:01:46.3]} 23... Qe7 {[%clk
0:01:43]} 24. Nc3 {[%clk 0:01:45.7]} 24... Be6 {[%clk 0:01:38.9]} 25. Nd5 {[%clk
0:01:44.6]} 25... Bxd5 {[%clk 0:01:37.4]} 26. cxd5 {[%clk 0:01:45.5]} 26... Qd7
{[%clk 0:01:34.4]} 27. bxc5 {[%clk 0:01:45.5]} 27... bxc5 {[%clk 0:01:34.2]} 28.
Qe4 {[%clk 0:01:42.2]} 28... Ne7 {[%clk 0:01:34.4]} 29. Raf1 {[%clk 0:01:21.4]}
29... Qb7 {[%clk 0:01:34.1]} 30. f4 {[%clk 0:01:19.7]} 30... Nxd5 {[%clk
0:01:28]} 31. fxe5 {[%clk 0:01:12.1]} 31... Rxf2 {[%clk 0:01:26.8]} 32. Rxf2
{[%clk 0:01:12]} 32... Rxf2 {[%clk 0:01:26.4]} 33. Kxf2 {[%clk 0:01:09.4]} 33...
Qxb2+ {[%clk 0:01:25.3]} 0-1